fUST/lending_fUST_20240808
["ID","MTS","AMOUNT","RATE_DAILY","PERIOD"]
[334417712,1723071050885,-500.0,0.00028925,7]
[334417713,1723071050895,-1104.96,0.00028925,7]
[334417714,1723071050904,-500.0,0.00028925,7]
[334417715,1723071050913,-500.0,0.00028925,7]
[334417716,1723071050924,-500.0,0.00028925,7]
[334417717,1723071050934,-500.0,0.00028925,7]
[334417718,1723071050944,-500.0,0.00028925,7]
[334417719,1723071050954,-940.21,0.00028925,7]
[334417720,1723071050964,-500.0,0.00028925,7]
[334417721,1723071050974,-1281.78,0.00028925,7]
[334417722,1723071050984,-1032.87,0.00028925,7]
[334417723,1723071050994,-500.0,0.00028925,7]
[334417724,1723071051004,-500.0,0.00028925,7]
[334417725,1723071051017,-503.61,0.00028925,7]
[334417726,1723071051026,-500.0,0.00028925,7]
[334417727,1723071051037,-1102.7,0.00028925,7]
[334417728,1723071051048,-503.32,0.00028925,7]
[334417729,1723071051058,-1226.99,0.00028925,7]
[334417730,1723071051069,-500.0,0.00028925,7]
[334417731,1723071051079,-500.0,0.00028925,7]
[334417732,1723071051090,-500.0,0.00028925,7]
[334417733,1723071051100,-500.0,0.00028925,7]
[334417734,1723071051110,-500.0,0.00028925,7]
[334417735,1723071051120,-500.0,0.00028925,7]
[334417736,1723071051130,-500.0,0.00028925,7]
[334417737,1723071051140,-500.0,0.00028925,7]
[334417738,1723071051150,-587.98,0.00028925,7]
[334417739,1723071051160,-500.0,0.00028925,7]
[334417740,1723071051170,-500.0,0.00028925,2]
[334417741,1723071051180,-500.0,0.00028925,7]
[334417742,1723071051190,-500.0,0.00028925,7]
[334417743,1723071051200,-620.78,0.00028925,7]
[334417744,1723071051210,-500.0,0.00028925,7]
[334417745,1723071051219,-557.5823597,0.00028925,7]
[334417746,1723071051229,-500.0,0.00028925,7]
[334417747,1723071051239,-583.14,0.00028925,7]
[334417748,1723071051250,-500.0,0.00028925,7]
[334417749,1723071051260,-500.0,0.00028925,7]
[334417750,1723071051269,-500.0,0.00028925,7]
[334417751,1723071051279,-501.87385666,0.00028925,7]
[334417752,1723071051289,-925.7,0.00028925,7]
[334417753,1723071051299,-501.17364506,0.00028925,7]
[334417754,1723071051308,-379.04161923,0.00028925,7]
[334417755,1723071051322,-500.0,0.00028925,7]
[334417756,1723071051335,-500.0,0.00028925,7]
[334417757,1723071051345,-500.0,0.00028925,7]
[334417758,1723071051356,-500.0,0.00028925,7]
[334417759,1723071051365,-2017.75,0.00028925,7]
[334417760,1723071051375,-504.46646769,0.00028925,7]
[334417761,1723071051385,-500.0,0.00028925,7]
[334417762,1723071051395,-500.0,0.00028925,7]
[334417763,1723071051405,-1156.6856093,0.00028925,7]
[334417764,1723071052058,-724.39999998,0.00028541,3]
[334417765,1723071052073,-66.32000002,0.00028541,3]
[334417766,1723071052083,-209.7743907,0.00028925,7]
[334417767,1723071052092,-500.0,0.00028925,7]
[334417768,1723071052102,-500.0,0.00028925,7]
[334417769,1723071052111,-500.0,0.00028925,7]
[334417770,1723071052121,-500.0,0.00028925,7]
[334417771,1723071052130,-500.0,0.00028925,7]
[334417772,1723071052140,-670.27,0.00028925,7]
[334417773,1723071052149,-500.0,0.00028925,7]
[334417774,1723071052159,-500.0,0.00028925,7]
[334417775,1723071052169,-500.0,0.00028925,7]
[334417776,1723071052179,-500.0,0.00028925,7]
[334417777,1723071052188,-73.63560928,0.00028925,7]
[334417778,1723071052200,-395.27880944,0.00028925,7]
[334417779,1723071052210,-335.17130191,0.00028925,7]
[334417780,1723071052219,-500.0,0.00028925,7]
[334417781,1723071052229,-288.44851298,0.00028925,7]
[334417782,1723071052474,-1688.53,0.00028552,3]
[334417783,1723071052484,-441.05148702,0.00028925,7]
[334417784,1723071052494,-427.69597731,0.00028925,7]
[334417799,1723071203778,163.48284,0.00014247,2]
[334417801,1723071651461,174.655578,0.00014247,2]
[334417886,1723072238369,-3176.32256262,0.00018316,2]
[334417887,1723072238379,-253.61467228,0.0002,2]
[334417888,1723072238388,-3385.9588653,0.0002,2]
[334417889,1723072238398,-160.42445745,0.00022,2]
[334417890,1723072238408,-300.0,0.00022,2]
[334417891,1723072238417,-5693.8545857,0.00024868,2]
[334417892,1723072238427,-189.52144051,0.00025,2]
[334417893,1723072238436,-154.98358091,0.00025,2]
[334417894,1723072238446,-165.557502,0.00025335,2]
[334417895,1723072238455,-150.0,0.00027663,2]
[334417896,1723072238464,-1407.11,0.00028438,3]
[334417897,1723072238474,-1172.59,0.00028438,3]
[334417898,1723072238483,-977.16,0.00028438,3]
[334417899,1723072238493,-974.09,0.00028439,7]
[334417900,1723072238502,-500.0,0.00028439,7]
[334417901,1723072238512,-51615.73804961,0.0002844,3]
[334417902,1723072238521,-2000.0,0.0002844,2]
[334417903,1723072238531,-162.2318803,0.00028445,2]
[334417904,1723072238541,-500.0,0.00028445,2]
[334417905,1723072238550,-500.0,0.00028445,2]
[334417906,1723072238559,-500.0,0.00028445,2]
[334417907,1723072238569,-189.28726519,0.00028445,2]
[334417908,1723072238578,-7897.49310148,0.00028447,3]
[334417909,1723072238588,-16778.47172015,0.00028448,21]
[334417910,1723072238597,-31589.9724059,0.00028448,3]
[334417911,1723072238607,-768.43,0.00028456,7]
[334417912,1723072238616,-4217.9,0.00028456,7]
[334417913,1723072238627,-1446.36,0.00028456,7]
[334417914,1723072238637,-500.0,0.00028456,7]
[334417915,1723072238647,-8986.81,0.00028456,7]
[334417916,1723072238656,-583.08,0.00028456,7]
[334417917,1723072238666,-5308.97,0.00028456,7]
[334417918,1723072238675,-5043.35,0.00028456,7]
[334417919,1723072238686,-2395.08,0.00028456,7]
[334417920,1723072238695,-546.77,0.00028456,7]
[334417921,1723072238705,-1435.54,0.00028456,7]
[334417922,1723072238715,-1255.51,0.00028456,7]
[334417923,1723072238725,-580.96,0.00028456,7]
[334417924,1723072238735,-789.77,0.00028456,7]
[334417925,1723072238744,-1251.45,0.00028456,7]
[334417926,1723072238754,-2964.41,0.00028456,7]
[334417927,1723072238764,-3641.42,0.00028456,7]
[334417928,1723072238773,-2114.5,0.00028457,7]
[334417929,1723072238784,-500.0,0.00028457,7]
[334417930,1723072238793,-2172.48,0.00028457,7]
[334417931,1723072238804,-500.0,0.00028457,7]
[334417932,1723072238815,-2610.43,0.00028457,7]
[334417933,1723072238826,-2811.61,0.00028457,7]
[334417934,1723072238837,-3033.74,0.00028457,7]
[334417935,1723072238847,-500.0,0.00028457,7]
[334417936,1723072238856,-500.0,0.00028457,7]
[334417937,1723072238866,-500.0,0.00028457,7]
[334417938,1723072238875,-1018.8,0.00028457,7]
[334417939,1723072238884,-500.0,0.00028457,7]
[334417940,1723072238896,-14815.65,0.00028457,7]
[334417941,1723072238906,-500.0,0.00028457,7]
[334417942,1723072238916,-1277.52,0.00028457,7]
[334417943,1723072238927,-3932.47,0.00028457,7]
[334417944,1723072238940,-500.0,0.00028457,7]
[334417945,1723072238950,-2569.26,0.00028457,7]
[334417946,1723072238960,-779.31,0.00028457,7]
[334417947,1723072238969,-2023.96,0.00028457,7]
[334417948,1723072238978,-1283.41,0.00028457,7]
[334417949,1723072238988,-818.98,0.00028457,7]
[334417950,1723072238997,-500.0,0.00028457,7]
[334417951,1723072239006,-1255.95,0.00028457,7]
[334417952,1723072239016,-967.62,0.00028457,7]
[334417953,1723072239025,-5692.33,0.00028457,7]
[334417954,1723072239035,-500.0,0.00028457,7]
[334417955,1723072239044,-3135.86,0.00028457,7]
[334417956,1723072239054,-500.0,0.00028457,7]
[334417957,1723072239064,-1182.71,0.00028457,7]
[334417958,1723072239075,-502.21277357,0.00028458,7]
[334417959,1723072239084,-500.0,0.00028458,7]
[334417960,1723072239094,-508.27,0.00028458,7]
[334417961,1723072239105,-594.82,0.00028458,7]
[334417962,1723072239114,-500.0,0.00028458,7]
[334417963,1723072239125,-500.0,0.00028458,7]
[334417964,1723072239135,-500.0,0.00028458,7]
[334417965,1723072239147,-500.0,0.00028458,7]
[334417966,1723072239159,-500.0,0.00028458,7]
[334417967,1723072239171,-570.28,0.00028458,7]
[334417968,1723072239182,-1218.54,0.00028458,7]
[334417969,1723072239193,-500.0,0.00028458,7]
[334417970,1723072239205,-500.0,0.00028458,7]
[334417971,1723072239215,-500.0,0.00028458,7]
[334417972,1723072239226,-500.0,0.00028458,7]
[334417973,1723072239235,-500.0,0.00028458,7]
[334417974,1723072239245,-503.75,0.00028458,7]
[334417975,1723072239254,-500.0,0.00028458,7]
[334417976,1723072239263,-500.0,0.00028458,7]
[334417977,1723072239273,-500.0,0.00028458,7]
[334417978,1723072239283,-500.0,0.00028458,7]
[334417979,1723072239292,-376.9651856,0.00028458,7]
[334417980,1723072239306,-500.0,0.00028458,7]
[334417981,1723072239316,-500.0,0.00028458,7]
[334417982,1723072239327,-500.0,0.00028458,7]
[334417983,1723072239338,-525.45643911,0.00028458,7]
[334417984,1723072239348,-500.0,0.00028458,7]
[334417985,1723072239358,-500.0,0.00028458,7]
[334417986,1723072239367,-500.0,0.00028458,7]
[334417987,1723072239380,-644.08717906,0.00028458,7]
[334417988,1723072239390,-500.0,0.00028458,7]
[334417989,1723072239399,-500.0,0.00028458,7]
[334417990,1723072239409,-500.0,0.00028458,7]
[334417991,1723072239419,-200.0,0.00028458,7]
[334417992,1723072239428,-500.0,0.00028458,7]
[334417993,1723072239438,-1104.73,0.00028458,7]
[334417994,1723072239448,-500.0,0.00028458,7]
[334417995,1723072239457,-500.0,0.00028458,7]
[334417996,1723072239466,-1164.32,0.00028458,7]
[334417997,1723072239476,-500.0,0.00028458,7]
[334417998,1723072239485,-500.0,0.00028458,7]
[334417999,1723072239495,-514.31885311,0.00028458,7]
[334418000,1723072239504,-500.0,0.00028458,7]
[334418001,1723072239513,-500.0,0.00028458,7]
[334418002,1723072239522,-500.0,0.00028458,7]
[334418003,1723072239533,-771.9,0.00028458,7]
[334418004,1723072239543,-500.0,0.00028458,7]
[334418005,1723072239552,-500.0,0.00028458,7]
[334418006,1723072239562,-968.94,0.00028458,7]
[334418007,1723072239571,-500.0,0.00028458,7]
[334418008,1723072239581,-898.42,0.00028458,7]
[334418009,1723072239591,-500.0,0.00028458,7]
[334418010,1723072239601,-500.0,0.00028458,7]
[334418011,1723072239611,-500.0,0.00028458,7]
[334418012,1723072239620,-500.0,0.00028458,7]
[334418013,1723072239630,-524.44,0.00028458,7]
[334418014,1723072239639,-1041.83,0.00028458,7]
[334418015,1723072239649,-751.18,0.00028458,7]
[334418016,1723072239658,-500.0,0.00028458,7]
[334418017,1723072239667,-520.96738811,0.00028458,7]
[334418018,1723072239677,-500.0,0.00028458,7]
[334418019,1723072239687,-574.56,0.00028458,7]
[334418020,1723072239697,-540.22347395,0.00028458,7]
[334418021,1723072239707,-500.0,0.00028458,7]
[334418022,1723072239716,-500.0,0.00028458,7]
[334418023,1723072239727,-500.0,0.00028458,7]
[334418024,1723072239739,-845.83,0.00028458,7]
[334418025,1723072239751,-500.97142327,0.00028458,7]
[334418026,1723072239761,-195.26264777,0.00028458,7]
[334418027,1723072239771,-733.07,0.00028458,7]
[334418028,1723072239780,-500.0,0.00028458,7]
[334418029,1723072239790,-1579.11,0.00028458,7]
[334418030,1723072239800,-500.0,0.00028458,7]
[334418031,1723072239809,-561.85,0.00028458,7]
[334418032,1723072239819,-529.32,0.00028458,7]
[334418033,1723072239831,-500.55305366,0.00028458,7]
[334418034,1723072239843,-500.0,0.00028458,7]
[334418036,1723072239853,-500.0,0.00028458,7]
[334418037,1723072239862,-500.0,0.00028458,7]
[334418038,1723072239872,-500.0,0.00028458,7]
[334418039,1723072239881,-500.0,0.00028458,7]
[334418040,1723072239891,-500.0,0.00028458,7]
[334418041,1723072239901,-538.74969551,0.00028458,7]
[334418042,1723072239910,-1358.68,0.00028458,7]
[334418043,1723072239921,-646.74,0.00028458,7]
[334418044,1723072239932,-1152.83,0.00028458,7]
[334418045,1723072239943,-500.0,0.00028458,7]
[334418046,1723072239953,-500.0,0.00028458,7]
[334418047,1723072239962,-553.87,0.00028458,7]
[334418048,1723072239974,-299.44738059,0.00028458,7]
[334418049,1723072239984,-354.62789311,0.00028458,7]
[334418050,1723072239996,-667.83,0.00028458,7]
[334418051,1723072240006,-500.0,0.00028458,7]
[334418052,1723072240016,-500.0,0.00028458,7]
[334418053,1723072240025,-500.0,0.00028458,7]
[334418054,1723072240035,-506.31900691,0.00028458,7]
[334418055,1723072240045,-1579.43,0.00028458,7]
[334418056,1723072240054,-500.0,0.00028458,7]
[334418057,1723072240063,-500.0,0.00028458,7]
[334418058,1723072240073,-500.0,0.00028458,7]
[334418059,1723072240082,-500.0,0.00028458,7]
[334418060,1723072240091,-500.0,0.00028458,7]
[334418061,1723072240103,-500.0,0.00028458,7]
[334418062,1723072240112,-500.0,0.00028458,7]
[334418063,1723072240121,-500.0,0.00028458,7]
[334418064,1723072240131,-500.0,0.00028458,7]
[334418065,1723072240141,-500.0,0.00028458,7]
[334418066,1723072240150,-500.0,0.00028458,7]
[334418067,1723072240159,-522.25,0.00028458,7]
[334418068,1723072240169,-501.15637128,0.00028458,7]
[334418069,1723072240178,-500.25828658,0.00028458,7]
[334418070,1723072240187,-500.0,0.00028458,7]
[334418071,1723072240196,-500.0,0.00028458,7]
[334418072,1723072240205,-500.0,0.00028458,7]
[334418073,1723072240215,-500.0,0.00028458,7]
[334418074,1723072240224,-500.0,0.00028458,7]
[334418075,1723072240233,-500.0,0.00028458,7]
[334418076,1723072240243,-500.0,0.00028458,7]
[334418077,1723072240252,-500.0,0.00028458,7]
[334418079,1723072240262,-500.0,0.00028458,7]
[334418081,1723072240274,-503.66368819,0.00028458,2]
[334418082,1723072240285,-1210.55,0.00028458,7]
[334418083,1723072240299,-580.2,0.00028458,7]
[334418084,1723072240308,-192.47619813,0.00028458,7]
[334418085,1723072240319,-500.0,0.00028458,7]
[334418086,1723072240330,-527.11288338,0.00028458,7]
[334418087,1723072240339,-500.0,0.00028458,7]
[334418088,1723072240351,-500.0,0.00028458,7]
[334418089,1723072240360,-500.0,0.00028458,7]
[334418090,1723072240370,-500.0,0.00028458,7]
[334418091,1723072240382,-500.0,0.00028458,7]
[334418092,1723072240392,-500.0,0.00028458,7]
[334418093,1723072240401,-500.0,0.00028458,7]
[334418094,1723072240411,-504.16,0.00028458,7]
[334418095,1723072240420,-500.0,0.00028458,7]
[334418096,1723072240430,-500.0,0.00028458,7]
[334418097,1723072240439,-500.0,0.00028458,7]
[334418098,1723072240449,-604.74,0.00028458,7]
[334418099,1723072240459,-500.0,0.00028458,7]
[334418100,1723072240468,-500.0,0.00028458,7]
[334418101,1723072240478,-500.0,0.00028458,7]
[334418102,1723072240488,-500.0,0.00028458,7]
[334418103,1723072240497,-1370.39,0.00028458,7]
[334418104,1723072240507,-500.0,0.00028458,7]
[334418105,1723072240516,-500.0,0.00028458,7]
[334418106,1723072240526,-500.0,0.00028458,7]
[334418107,1723072240535,-1896.27,0.00028458,7]
[334418108,1723072240545,-500.0,0.00028458,7]
[334418109,1723072240554,-500.0,0.00028458,7]
[334418110,1723072240564,-1382.47,0.00028458,7]
[334418111,1723072240573,-500.0,0.00028458,7]
[334418112,1723072240583,-500.0,0.00028458,7]
[334418113,1723072240592,-500.0,0.00028458,7]
[334418114,1723072240602,-518.29535683,0.00028458,7]
[334418115,1723072240611,-526.71203819,0.00028458,7]
[334418116,1723072240621,-500.0,0.00028458,7]
[334418117,1723072240631,-791.73,0.00028458,7]
[334418118,1723072240640,-500.0,0.00028458,7]
[334418119,1723072240650,-619.12845902,0.00028458,7]
[334418120,1723072240660,-500.0,0.00028458,7]
[334418121,1723072240669,-500.0,0.00028458,7]
[334418122,1723072240678,-500.0,0.00028458,7]
[334418123,1723072240688,-500.0,0.00028458,7]
[334418124,1723072240697,-500.0,0.00028458,7]
[334418125,1723072240708,-501.86153908,0.00028458,7]
[334418127,1723072240718,-500.0,0.00028458,7]
[334418129,1723072240728,-500.0,0.00028458,7]
[334418130,1723072240739,-500.0,0.00028458,7]
[334418131,1723072240750,-500.0,0.00028458,7]
[334418132,1723072240760,-4328.96,0.00028458,7]
[334418133,1723072240770,-500.0,0.00028458,7]
[334418134,1723072240780,-500.0,0.00028458,7]
[334418135,1723072240790,-500.0,0.00028458,6]
[334418136,1723072240799,-500.0,0.00028458,7]
[334418137,1723072240809,-500.0,0.00028458,7]
[334418138,1723072240819,-154.45268599,0.00028458,7]
[334418139,1723072240828,-474.55475423,0.00028458,7]
[334418140,1723072240837,-1241.43,0.00028458,7]
[334418141,1723072240847,-500.0,0.00028458,7]
[334418142,1723072240857,-500.0,0.00028458,7]
[334418143,1723072240868,-523.8019494,0.00028458,7]
[334418144,1723072240878,-500.0,0.00028458,7]
[334418145,1723072240890,-500.0,0.00028458,7]
[334418146,1723072240901,-500.0,0.00028458,7]
[334418147,1723072240911,-1270.57,0.00028458,7]
[334418148,1723072240920,-500.0,0.00028458,7]
[334418149,1723072240929,-556.74644109,0.00028458,7]
[334418150,1723072240941,-500.0,0.00028458,7]
[334418151,1723072240952,-500.0,0.00028458,7]
[334418152,1723072240963,-166.92801832,0.00028458,7]
[334418153,1723072240975,-500.0,0.00028458,7]
[334418154,1723072240986,-500.0,0.00028458,7]
[334418155,1723072240995,-500.0,0.00028458,7]
[334418156,1723072241006,-405.89083413,0.00028458,7]
[334418157,1723072241164,-94.10916587,0.00028458,7]
[334418158,1723072241173,-500.0,0.00028458,7]
[334418159,1723072241183,-500.0,0.00028458,7]
[334418160,1723072241192,-593.03,0.00028458,7]
[334418161,1723072241202,-507.68379742,0.00028458,7]
[334418162,1723072241212,-500.0,0.00028458,7]
[334418163,1723072241221,-500.0,0.00028458,7]
[334418164,1723072241231,-500.0,0.00028458,7]
[334418165,1723072241240,-500.0,0.00028458,7]
[334418166,1723072241251,-500.0,0.00028458,7]
[334418167,1723072241260,-558.09442307,0.00028458,7]
[334418168,1723072241271,-730.17,0.00028458,7]
[334418169,1723072241281,-282.90586267,0.00028458,7]
[334418170,1723072241291,-821.56,0.00028458,7]
[334418171,1723072241305,-500.0,0.00028458,7]
[334418172,1723072241314,-557.81404015,0.00028458,7]
[334418173,1723072241501,-500.0,0.00028458,7]
[334418174,1723072241512,-916.96,0.00028458,7]
[334418175,1723072241525,-500.0,0.00028458,7]
[334418176,1723072241534,-782.75,0.00028458,7]
[334418177,1723072241544,-1281.57,0.00028458,7]
[334418178,1723072241553,-1748.59,0.00028458,7]
[334418179,1723072241562,-2742.48,0.00028458,7]
[334418180,1723072241572,-500.0,0.00028458,7]
[334418181,1723072241583,-1195.83,0.00028458,7]
[334418182,1723072241596,-581.99492634,0.00028458,7]
[334418183,1723072241607,-500.0,0.00028458,7]
[334418184,1723072241618,-500.0,0.00028458,7]
[334418185,1723072241627,-8771.69,0.00028458,7]
[334418186,1723072241637,-748.64,0.00028458,7]
[334418187,1723072241646,-500.0,0.00028458,7]
[334418188,1723072241655,-700.43,0.00028458,7]
[334418189,1723072241665,-500.0,0.00028458,7]
[334418190,1723072241674,-500.0,0.00028458,7]
[334418191,1723072241683,-2129.84,0.00028458,7]
[334418192,1723072241693,-500.0,0.00028458,7]
[334418193,1723072241702,-528.89,0.00028458,7]
[334418194,1723072241712,-1240.98,0.00028458,7]
[334418195,1723072241722,-500.0,0.00028458,7]
[334418196,1723072241731,-500.0,0.00028458,7]
[334418197,1723072241741,-1476.0,0.00028458,7]
[334418198,1723072241750,-500.0,0.00028458,7]
[334418199,1723072241760,-500.0,0.00028458,7]
[334418200,1723072241769,-500.0,0.00028458,7]
[334418201,1723072241779,-3503.63,0.00028458,7]
[334418202,1723072241788,-500.0,0.00028458,7]
[334418203,1723072241797,-500.0,0.00028458,7]
[334418204,1723072241807,-500.0,0.00028458,7]
[334418205,1723072241816,-914.09,0.00028458,7]
[334418206,1723072241826,-500.0,0.00028458,7]
[334418207,1723072241837,-500.0,0.00028458,7]
[334418208,1723072241846,-500.0,0.00028458,7]
[334418209,1723072241859,-500.0,0.00028458,7]
[334418210,1723072241876,-500.0,0.00028458,7]
[334418211,1723072241886,-500.0,0.00028458,7]
[334418212,1723072241895,-500.0,0.00028458,7]
[334418213,1723072241906,-369.77249009,0.00028458,7]
[334418214,1723072241915,-2522.83,0.00028458,7]
[334418215,1723072241925,-500.0,0.00028458,7]
[334418216,1723072241935,-500.0,0.00028458,7]
[334418217,1723072241944,-500.0,0.00028458,7]
[334418218,1723072241954,-500.0,0.00028458,7]
[334418219,1723072241964,-500.0,0.00028458,7]
[334418220,1723072241974,-940.21,0.00028458,7]
[334418221,1723072241983,-500.0,0.00028458,7]
[334418222,1723072241992,-500.0,0.00028458,7]
[334418223,1723072242001,-500.0,0.00028458,7]
[334418224,1723072242010,-500.0,0.00028458,7]
[334418225,1723072242019,-523.61,0.00028458,7]
[334418226,1723072242028,-555.66,0.00028458,7]
[334418227,1723072242038,-500.0,0.00028458,7]
[334418228,1723072242049,-500.0,0.00028458,7]
[334418229,1723072242059,-500.0,0.00028458,7]
[334418230,1723072242068,-500.0,0.00028458,7]
[334418231,1723072242077,-1281.78,0.00028458,7]
[334418232,1723072242087,-500.0,0.00028458,2]
[334418233,1723072242096,-500.0,0.00028459,7]
[334418234,1723072242109,-500.0,0.00028459,7]
[334418235,1723072242118,-500.0,0.00028459,7]
[334418236,1723072242127,-150.112233,0.000285,7]
[334418237,1723072242136,-500.0,0.00028503,7]
[334418238,1723072242145,-500.0,0.00028503,7]
[334418239,1723072242154,-500.0,0.00028503,7]
[334418240,1723072242163,-7897.49310148,0.00028513,3]
[334418241,1723072242173,-7897.49310148,0.00028515,3]
[334418242,1723072242183,-500.0,0.00028523,7]
[334418243,1723072242192,-500.0,0.00028523,7]
[334418244,1723072242203,-500.0,0.00028523,7]
[334418245,1723072242213,-500.0,0.00028524,7]
[334418246,1723072242223,-500.0,0.00028524,7]
[334418247,1723072242233,-500.0,0.00028524,7]
[334418248,1723072242242,-500.0,0.00028525,7]
[334418249,1723072242252,-500.0,0.00028525,7]
[334418250,1723072242262,-500.0,0.00028525,7]
[334418251,1723072242273,-500.0,0.00028525,7]
[334418252,1723072242283,-500.0,0.00028525,7]
[334418253,1723072242298,-1032.87,0.00028525,7]
[334418254,1723072242308,-500.0,0.00028525,7]
[334418255,1723072242317,-500.0,0.00028525,7]
[334418256,1723072242327,-500.0,0.00028525,7]
[334418257,1723072242339,-505.16360178,0.00028525,7]
[334418258,1723072242349,-1102.7,0.00028525,7]
[334418259,1723072242363,-500.0,0.00028525,7]
[334418260,1723072242374,-500.0,0.00028525,7]
[334418261,1723072242383,-1214.09,0.00028525,7]
[334418262,1723072242393,-500.0,0.00028525,7]
[334418263,1723072242402,-1156.56,0.00028525,7]
[334418264,1723072242412,-500.0,0.00028525,7]
[334418265,1723072242422,-500.0,0.00028525,7]
[334418266,1723072242432,-500.0,0.00028525,7]
[334418267,1723072242442,-500.0,0.00028525,7]
[334418268,1723072242452,-594.92,0.00028525,7]
[334418269,1723072242463,-1933.67,0.00028525,7]
[334418270,1723072242474,-500.0,0.00028525,7]
[334418271,1723072242483,-500.0,0.00028525,7]
[334418272,1723072242493,-501.87385666,0.00028525,7]
[334418273,1723072242503,-887.13,0.00028525,7]
[334418274,1723072242513,-500.0,0.00028525,7]
[334418275,1723072242523,-500.0,0.00028525,7]
[334418276,1723072242532,-1863.44,0.00028525,7]
[334418278,1723072242543,-1634.11,0.00028525,7]
[334418280,1723072242556,-500.0,0.00028525,7]
[334418282,1723072242567,-614.42,0.00028525,7]
[334418283,1723072242577,-500.0,0.00028525,2]
[334418284,1723072242586,-500.0,0.00028525,7]
[334418285,1723072242595,-668.71,0.00028525,7]
[334418286,1723072242607,-500.0,0.00028525,7]
[334418287,1723072242616,-500.0,0.00028525,7]
[334418288,1723072242625,-500.0,0.00028525,7]
[334418290,1723072242635,-736.39,0.00028525,7]
[334418293,1723072242645,-708.72,0.00028525,7]
[334418295,1723072242656,-500.0,0.00028525,7]
[334418297,1723072242667,-500.0,0.00028525,7]
[334418298,1723072242677,-500.0,0.00028525,7]
[334418300,1723072242687,-916.27,0.00028525,7]
[334418304,1723072242696,-500.0,0.00028525,7]
[334418305,1723072242705,-1397.9,0.00028525,7]
[334418307,1723072242714,-1000.0,0.00028525,2]
[334418309,1723072242724,-581.33432109,0.00028525,7]
[334418311,1723072242734,-1129.26,0.00028525,7]
[334418312,1723072242744,-547.48,0.00028525,7]
[334418313,1723072242757,-500.0,0.00028525,7]
[334418314,1723072242768,-1530.02,0.00028525,7]
[334418316,1723072242778,-1565.57,0.00028525,7]
[334418318,1723072242787,-500.0,0.00028525,7]
[334418319,1723072242797,-524.2355906,0.00028525,7]
[334418320,1723072242806,-371.19539826,0.00028525,7]
[334418321,1723072242814,-500.0,0.00028525,7]
[334418322,1723072242825,-500.0,0.00028525,7]
[334418323,1723072242836,-1772.31,0.00028525,7]
[334418324,1723072242846,-500.0,0.00028525,7]
[334418326,1723072242858,-500.0,0.00028525,7]
[334418328,1723072242868,-889.3,0.00028525,7]
[334418330,1723072242877,-500.0,0.00028525,7]
[334418331,1723072242886,-500.0,0.00028525,7]
[334418332,1723072242896,-602.71,0.00028525,7]
[334418333,1723072242906,-1041.8,0.00028525,7]
[334418334,1723072242915,-757.88,0.00028525,7]
[334418335,1723072242925,-1971.21,0.00028525,7]